Workbook

Sheet Kund & Projekt
A9: KUND & PROJEKTUPPGIFTER
A11: Kunduppgifter | D11: Intern kundinfo (syns ej på offert)
A12: Kundnamn | B12: Exempel: Anders Andersson | D12: Tidigare kund? | E12: Ja / Nej
A13: Personnr/Org.nr | D13: Hur fick vi kontakten? | E13: Google, rekommendation, tidigare kund, offertförfrågan via mail
A14: Kontaktperson | B14: Exempel: Anders Andersson | D14: Tidigare jobb | E14: Exempel: Köksrenovering 2023
A15: Telefon | B15: Exempel: 0123-456 789
A16: E-post | B16: Exempel: Anders@Epost.se | D16: Anteckningar / historik | E16: Exempel: Noggrann kund, vill ha löpande uppdateringar via sms. Känslig för damm → viktigt med täckning.
A17: Adress | B17: Exempel: Huset 3
A18: Postnr & Ort | B18: Exempel: 123 45 Djupa dalen
A20: Projektuppgifter
A21: Projektnamn
A22: Fastighetsbeteckning
A23: Arbetsplats (om annan) | B23: Exempel: kundadress / Sommarstuga
A25: Projektbeskrivning | B25: Exempel: Rivning av befintligt badrum, ny tätskikt, kakel, klinker och installation av ny
D33: 🔒 DEMOVERSION Begränsad funktionalitet. Full version beställs via fribergbyggkonsult.se

Sheet Kalkyl
A1: Post | B1: Materialkostnad | C1: Arbetstimmar | D1: Timpris | E1: Summa | F1: Egenkostnad arbete | G1: Arbetsvinst
A2: Exempel: Renovera badrum | B2: 45000 | C2: 40 | D2: Snickare | E2: =IF(D2="","",B2 + C2*VLOOKUP(D2,Timpriser!A:C,3,FALSE)) -> 67000 | F2: =IF(D2="","",C2*VLOOKUP(D2,Timpriser!A:B,2,FALSE)) -> 16000 | G2: =IF(D2="","",C2*(VLOOKUP(D2,Timpriser!A:C,3,FALSE)-VLOOKUP(D2,Timpriser!A:B,2,FALSE))) -> 6000
E3: =IF(D3="","",B3 + C3*VLOOKUP(D3,Timpriser!A:C,3,FALSE)) ->  | F3: =IF(D3="","",C3*VLOOKUP(D3,Timpriser!A:B,2,FALSE)) ->  | G3: =IF(D3="","",C3*(VLOOKUP(D3,Timpriser!A:C,3,FALSE)-VLOOKUP(D3,Timpriser!A:B,2,FALSE))) -> 
E4: =IF(D4="","",B4 + C4*VLOOKUP(D4,Timpriser!A:C,3,FALSE)) ->  | F4: =IF(D4="","",C4*VLOOKUP(D4,Timpriser!A:B,2,FALSE)) ->  | G4: =IF(D4="","",C4*(VLOOKUP(D4,Timpriser!A:C,3,FALSE)-VLOOKUP(D4,Timpriser!A:B,2,FALSE))) -> 
E5: =IF(D5="","",B5 + C5*VLOOKUP(D5,Timpriser!A:C,3,FALSE)) ->  | F5: =IF(D5="","",C5*VLOOKUP(D5,Timpriser!A:B,2,FALSE)) ->  | G5: =IF(D5="","",C5*(VLOOKUP(D5,Timpriser!A:C,3,FALSE)-VLOOKUP(D5,Timpriser!A:B,2,FALSE))) -> 
E6: =IF(D6="","",B6 + C6*VLOOKUP(D6,Timpriser!A:C,3,FALSE)) ->  | F6: =IF(D6="","",C6*VLOOKUP(D6,Timpriser!A:B,2,FALSE)) ->  | G6: =IF(D6="","",C6*(VLOOKUP(D6,Timpriser!A:C,3,FALSE)-VLOOKUP(D6,Timpriser!A:B,2,FALSE))) -> 
E7: =IF(D7="","",B7 + C7*VLOOKUP(D7,Timpriser!A:C,3,FALSE)) ->  | F7: =IF(D7="","",C7*VLOOKUP(D7,Timpriser!A:B,2,FALSE)) ->  | G7: =IF(D7="","",C7*(VLOOKUP(D7,Timpriser!A:C,3,FALSE)-VLOOKUP(D7,Timpriser!A:B,2,FALSE))) -> 
E8: =IF(D8="","",B8 + C8*VLOOKUP(D8,Timpriser!A:C,3,FALSE)) ->  | F8: =IF(D8="","",C8*VLOOKUP(D8,Timpriser!A:B,2,FALSE)) ->  | G8: =IF(D8="","",C8*(VLOOKUP(D8,Timpriser!A:C,3,FALSE)-VLOOKUP(D8,Timpriser!A:B,2,FALSE))) -> 
E9: =IF(D9="","",B9 + C9*VLOOKUP(D9,Timpriser!A:C,3,FALSE)) ->  | F9: =IF(D9="","",C9*VLOOKUP(D9,Timpriser!A:B,2,FALSE)) ->  | G9: =IF(D9="","",C9*(VLOOKUP(D9,Timpriser!A:C,3,FALSE)-VLOOKUP(D9,Timpriser!A:B,2,FALSE))) -> 
E10: =IF(D10="","",B10 + C10*VLOOKUP(D10,Timpriser!A:C,3,FALSE)) ->  | F10: =IF(D10="","",C10*VLOOKUP(D10,Timpriser!A:B,2,FALSE)) ->  | G10: =IF(D10="","",C10*(VLOOKUP(D10,Timpriser!A:C,3,FALSE)-VLOOKUP(D10,Timpriser!A:B,2,FALSE))) -> 
E11: =IF(D11="","",B11 + C11*VLOOKUP(D11,Timpriser!A:C,3,FALSE)) ->  | F11: =IF(D11="","",C11*VLOOKUP(D11,Timpriser!A:B,2,FALSE)) ->  | G11: =IF(D11="","",C11*(VLOOKUP(D11,Timpriser!A:C,3,FALSE)-VLOOKUP(D11,Timpriser!A:B,2,FALSE))) -> 
E12: =IF(D12="","",B12 + C12*VLOOKUP(D12,Timpriser!A:C,3,FALSE)) ->  | F12: =IF(D12="","",C12*VLOOKUP(D12,Timpriser!A:B,2,FALSE)) ->  | G12: =IF(D12="","",C12*(VLOOKUP(D12,Timpriser!A:C,3,FALSE)-VLOOKUP(D12,Timpriser!A:B,2,FALSE))) -> 
E13: =IF(D13="","",B13 + C13*VLOOKUP(D13,Timpriser!A:C,3,FALSE)) ->  | F13: =IF(D13="","",C13*VLOOKUP(D13,Timpriser!A:B,2,FALSE)) ->  | G13: =IF(D13="","",C13*(VLOOKUP(D13,Timpriser!A:C,3,FALSE)-VLOOKUP(D13,Timpriser!A:B,2,FALSE))) -> 
E14: =IF(D14="","",B14 + C14*VLOOKUP(D14,Timpriser!A:C,3,FALSE)) ->  | F14: =IF(D14="","",C14*VLOOKUP(D14,Timpriser!A:B,2,FALSE)) ->  | G14: =IF(D14="","",C14*(VLOOKUP(D14,Timpriser!A:C,3,FALSE)-VLOOKUP(D14,Timpriser!A:B,2,FALSE))) -> 
E15: =IF(D15="","",B15 + C15*VLOOKUP(D15,Timpriser!A:C,3,FALSE)) ->  | F15: =IF(D15="","",C15*VLOOKUP(D15,Timpriser!A:B,2,FALSE)) ->  | G15: =IF(D15="","",C15*(VLOOKUP(D15,Timpriser!A:C,3,FALSE)-VLOOKUP(D15,Timpriser!A:B,2,FALSE))) -> 
E16: =IF(D16="","",B16 + C16*VLOOKUP(D16,Timpriser!A:C,3,FALSE)) ->  | F16: =IF(D16="","",C16*VLOOKUP(D16,Timpriser!A:B,2,FALSE)) ->  | G16: =IF(D16="","",C16*(VLOOKUP(D16,Timpriser!A:C,3,FALSE)-VLOOKUP(D16,Timpriser!A:B,2,FALSE))) -> 
E17: =IF(D17="","",B17 + C17*VLOOKUP(D17,Timpriser!A:C,3,FALSE)) ->  | F17: =IF(D17="","",C17*VLOOKUP(D17,Timpriser!A:B,2,FALSE)) ->  | G17: =IF(D17="","",C17*(VLOOKUP(D17,Timpriser!A:C,3,FALSE)-VLOOKUP(D17,Timpriser!A:B,2,FALSE))) -> 
E18: =IF(D18="","",B18 + C18*VLOOKUP(D18,Timpriser!A:C,3,FALSE)) ->  | F18: =IF(D18="","",C18*VLOOKUP(D18,Timpriser!A:B,2,FALSE)) ->  | G18: =IF(D18="","",C18*(VLOOKUP(D18,Timpriser!A:C,3,FALSE)-VLOOKUP(D18,Timpriser!A:B,2,FALSE))) -> 
E19: =IF(D19="","",B19 + C19*VLOOKUP(D19,Timpriser!A:C,3,FALSE)) ->  | F19: =IF(D19="","",C19*VLOOKUP(D19,Timpriser!A:B,2,FALSE)) ->  | G19: =IF(D19="","",C19*(VLOOKUP(D19,Timpriser!A:C,3,FALSE)-VLOOKUP(D19,Timpriser!A:B,2,FALSE))) -> 
E20: =IF(D20="","",B20 + C20*VLOOKUP(D20,Timpriser!A:C,3,FALSE)) ->  | F20: =IF(D20="","",C20*VLOOKUP(D20,Timpriser!A:B,2,FALSE)) ->  | G20: =IF(D20="","",C20*(VLOOKUP(D20,Timpriser!A:C,3,FALSE)-VLOOKUP(D20,Timpriser!A:B,2,FALSE))) -> 
G21: =SUM(G2:G20) -> 6000
A23: Total materialkostnad | B23: =SUM(B2:B20) -> 45000
A24: Total arbetskostnad | B24: =SUM(F2:F20) + SUM(G2:G20) -> 22000 | D24: OBS kalkylblad fylls i exkl moms
A25: Total före påslag | B25: =SUM(E2:E20) -> 67000
A27: Materialpåslag | B27: =B23*Påslag!B1/100 -> 6750
A28: Övriga kostnader | B28: =Påslag!B2 + Påslag!B3 + Påslag!B4 -> 3500
A29: Totalt efter påslag | B29: =Påslag!B7 -> 77250
A31: Beräknad vinst (kr) | B31: =B27 + G21 -> 12750
A32: Vinstmarginal (%) | B32: =IF(B29=0,"",B31/B29) -> 0.1650485437

Sheet Påslag
A1: Materialpåslag % | B1: 15
A2: Resekostnad | B2: 1500
A3: Maskinkostnad | B3: 2000
A4: Övriga kostnader | B4: 0
A6: Materialpåslag i kr | B6: =Kalkyl!B23 * B1 / 100 -> 6750
A7: Totalt efter påslag | B7: =Kalkyl!B25 + B6 + B2 + B3 + B4 -> 77250

Sheet ROT
A1: Arbetskostnad exkl. moms | B1: =Kalkyl!B24 -> 22000
A2: Arbetskostnad inkl. moms | B2: =B1*1.25 -> 27500
A3: ROT-avdrag 30% | B3: =B2*0.3 -> 8250
A4: Max ROT | B4: 50000
A5: ROT att dra av | B5: =MIN(B3,B4) -> 8250 | E5: Totalt exkl.moms | F5: =Påslag!B7 -> 77250
E6: totalt inkl moms | F6: =F5*1.25 -> 96562.5
A7: Pris efter ROT | B7: =F6 - B5 -> 88312.5

Sheet Timpriser
A1: Roll | B1: Självkostnad/tim | C1: Debiteras | D1: Vinst/tim
A2: Snickare | B2: 400 | C2: 550 | D2: =C2-B2 -> 150
A3: Lärling | B3: 250 | C3: 380 | D3: =C3-B3 -> 130
A4: Arbetsledare | B4: 500 | C4: 750 | D4: =C4-B4 -> 250
B6: OBS, timkostnad fylls i exkl. moms

Sheet Offert
A1: OFFERT
A2: Bygg & Renovering AB
A3: 070‑123 45 67 | info@byggfirma.se | Org.nr 556123‑4567
A5: Offertnummer: | B5: =TEXT(TODAY(),"YYYYMMDD") -> YYYY0212 | C5: Offertdatum: | D5: =TODAY() -> 2026-02-12
C6: Giltig till: | D6: =D5+30 -> 2026-03-14
A8: ='Kund & Projekt'!B12 -> Exempel: Anders Andersson | C8: ='Kund & Projekt'!B14 -> Exempel: Anders Andersson
A9: ='Kund & Projekt'!B17 -> Exempel: Huset 3 | C9: ='Kund & Projekt'!B15 -> Exempel: 0123-456 789
A10: ='Kund & Projekt'!B18 -> Exempel: 123 45 Djupa dalen | C10: ='Kund & Projekt'!B16 -> Exempel: Anders@Epost.se
A13: Beskrivning av arbete | C13: Totalt före ROT | D13: =Kalkyl!B29 -> 77250
A14: • Rivning av befintliga ytskikt • Montering av nya väggar enligt ritning • Material enligt överenskommen standard | C14: ROT-avdrag | D14: =ROT!B5 -> 8250
A15: • | C15: TOTALT ATT BETALA | D15: =ROT!B7 -> 88312.5
A16: • | C16: Varav moms | D16: =D20*0.2 -> 7065
C18: Betalningsplan
A19: Detta ingår inte | C19: 30 % vid start | D19: =ROT!B7*0.3 -> 26493.75
A20: • El- och VVS-arbeten utöver ovan • Oförutsedda skador i stomme | C20: 40 % under projektet | D20: =D15*0.4 -> 35325
A21: • | C21: 30 % efter slutfört arbete | D21: =ROT!B7*0.3 -> 26493.75
A23: Förutsättningar och avvikelser | C23: ROT-avdraget är preliminärt och baseras på kundens uppgifter. Slutligt avdrag fastställs av Skatteverket. Om avdraget inte beviljas betalar kunden mellanskillnaden.
A24: • Arbetet förutsätter fri tillgång till arbetsplatsen • Tilläggsarbeten godkänns skriftligen
A25: •
A27: Här kan företaget lämna ytterligare information till kund. | C27: “Genom underskrift godkänns denna offert och dess villkor.”
A29: Ort & datum: | C29: Beställare underskrift:
A33: Bygg & Renovering AB | Org.nr 556123-4567 | Godkänd för F-skatt | Momsreg.nr SE556123456701 | Telefon 070-123 45 67 | info@byggfirma.se

Sheet Licens
A1: Licensierad till företag: | B1: Byggfirma AB
A2: Organisationsnummer: | B2: 556123-4567
A3: Licens giltig till: | B3: 2029-12-31
A7: Licens & användarvillkor Denna offertmall är licensierad för användning av ett (1) företag och gäller till det datum som anges i dokumentet. Mallen får inte kopieras, säljas eller spridas vidare utan skriftligt tillstånd. När licensperioden löper ut krävs förnyelse för fortsatt användning.
